fUST/lending_fUST_20250105
["ID","MTS","AMOUNT","RATE_DAILY","PERIOD"]
[347725136,1736082641301,-500.0,0.00019178,2]
[347725137,1736082641310,-500.0,0.00019178,2]
[347725138,1736082641320,-500.0,0.00019178,2]
[347725139,1736082641333,-500.0,0.00019178,2]
[347725140,1736082641342,-172.60419483,0.00019178,2]
[347725141,1736082641352,-500.0,0.00019178,2]
[347725142,1736082641361,-500.0,0.00019178,2]
[347725143,1736082641371,-500.0,0.00019178,2]
[347725144,1736082641380,-500.0,0.00019178,2]
[347725145,1736082641389,-500.0,0.00019178,2]
[347725146,1736082641399,-500.0,0.00019178,2]
[347725147,1736082641410,-500.0,0.00019178,2]
[347725148,1736082641420,-500.0,0.00019178,2]
[347725149,1736082641429,-500.0,0.00019178,2]
[347725150,1736082641438,-523.15,0.00019178,2]
[347725151,1736082641447,-2343.35,0.00019178,2]
[347725152,1736082641457,-500.0,0.00019178,2]
[347725153,1736082641466,-510.13901952,0.00019178,2]
[347725154,1736082641475,-500.0,0.00019178,2]
[347725155,1736082641484,-500.0,0.00019178,2]
[347725156,1736082641494,-500.0,0.00019178,2]
[347725157,1736082641503,-1142.32,0.00019178,2]
[347725158,1736082641512,-500.0,0.00019178,2]
[347725159,1736082641522,-500.0,0.00019178,2]
[347725160,1736082641531,-500.0,0.00019178,2]
[347725161,1736082641540,-1119.04,0.00019178,2]
[347725162,1736082641550,-615.83,0.00019178,2]
[347725163,1736082641560,-500.0,0.00019178,2]
[347725164,1736082641570,-500.0,0.00019178,2]
[347725165,1736082641579,-500.0,0.00019178,2]
[347725166,1736082641588,-500.0,0.00019178,2]
[347725167,1736082641598,-500.0,0.00019178,2]
[347725168,1736082641608,-500.0,0.00019178,2]
[347725169,1736082641617,-500.0,0.00019178,2]
[347725170,1736082641627,-200.00549168,0.00019178,2]
[347725171,1736082641635,-500.0,0.00019178,2]
[347725172,1736082641644,-500.0,0.00019178,2]
[347725173,1736082641653,-500.0,0.00019178,2]
[347725174,1736082641662,-500.0,0.00019178,2]
[347725175,1736082641672,-500.0,0.00019178,2]
[347725176,1736082641681,-510.92496706,0.00019178,2]
[347725177,1736082641690,-500.0,0.00019178,2]
[347725178,1736082641699,-229.24,0.00019178,2]
[347725179,1736082641709,-500.0,0.00019178,2]
[347725180,1736082641718,-500.0,0.00019178,2]
[347725181,1736082641727,-500.0,0.00019178,2]
[347725182,1736082641737,-500.0,0.00019178,2]
[347725183,1736082641746,-500.0,0.00019178,2]
[347725184,1736082641755,-500.0,0.00019178,2]
[347725185,1736082641765,-500.0,0.00019178,2]
[347725186,1736082641774,-500.0,0.00019178,2]
[347725187,1736082641783,-505.6889392,0.00019178,2]
[347725188,1736082641793,-517.95,0.00019178,2]
[347725189,1736082641802,-761.4,0.00019178,2]
[347725190,1736082641811,-500.0,0.00019178,2]
[347725191,1736082641820,-500.0,0.00019178,2]
[347725192,1736082641830,-500.0,0.00019178,2]
[347725193,1736082641840,-500.0,0.00019178,2]
[347725194,1736082641849,-500.0,0.00019178,2]
[347725195,1736082641858,-500.0,0.00019178,2]
[347725196,1736082641867,-500.0,0.00019178,2]
[347725197,1736082641876,-503.758937,0.00019178,2]
[347725198,1736082641885,-500.0,0.00019178,2]
[347725199,1736082641895,-500.0,0.00019178,2]
[347725200,1736082641904,-500.0,0.00019178,2]
[347725201,1736082641913,-500.0,0.00019178,2]
[347725202,1736082641922,-500.0,0.00019178,2]
[347725203,1736082641931,-500.0,0.00019178,2]
[347725204,1736082641940,-500.0,0.00019178,2]
[347725205,1736082641950,-829.06,0.00019178,2]
[347725206,1736082641960,-306.82954838,0.00019178,2]
[347725207,1736082641969,-500.0,0.00019178,2]
[347725208,1736082641978,-500.0,0.00019178,2]
[347725209,1736082641987,-500.0,0.00019178,2]
[347725210,1736082641997,-500.0,0.00019178,2]
[347725211,1736082642006,-500.0,0.00019178,2]
[347725212,1736082642015,-500.0,0.00019178,2]
[347725213,1736082642024,-500.0,0.00019178,2]
[347725214,1736082642033,-507.75,0.00019178,2]
[347725215,1736082642042,-500.0,0.00019178,2]
[347725216,1736082642051,-500.0,0.00019178,2]
[347725217,1736082642060,-500.0,0.00019178,2]
[347725218,1736082642069,-500.0,0.00019178,2]
[347725219,1736082642079,-500.0,0.00019178,2]
[347725220,1736082642088,-194.60185919,0.00019178,2]
[347725221,1736082642098,-403.41760755,0.00019178,2]
[347725222,1736082642107,-500.0,0.00019178,2]
[347725223,1736082642116,-500.0,0.00019178,2]
[347725224,1736082642126,-500.0,0.00019178,2]
[347725225,1736082642135,-500.0,0.00019178,2]
[347725226,1736082642144,-789.32,0.00019178,2]
[347725227,1736082642153,-500.0,0.00019178,2]
[347725228,1736082642162,-500.0,0.00019178,2]
[347725229,1736082642171,-500.0,0.00019178,2]
[347725230,1736082642181,-500.0,0.00019178,2]
[347725231,1736082642190,-500.0,0.00019178,2]
[347725232,1736082642200,-1561.65,0.00019178,2]
[347725233,1736082642209,-1561.65,0.00019178,2]
[347725234,1736082642218,-500.0,0.00019178,2]
[347725235,1736082642228,-500.0,0.00019178,2]
[347725236,1736082642237,-500.0,0.00019178,2]
[347725237,1736082642247,-500.0,0.00019178,2]
[347725238,1736082642256,-500.0,0.00019178,2]
[347725239,1736082642266,-500.0,0.00019178,2]
[347725240,1736082642275,-225.88,0.000192,2]
[347725241,1736082642285,-300.0,0.000193,8]
[347725242,1736082642296,-500.0,0.00019451,3]
[347725243,1736082642305,-500.0,0.00019452,3]
[347725244,1736082642314,-500.0,0.00019452,3]
[347725245,1736082642324,-277.76915301,0.00019452,3]
[347725246,1736082642336,-500.0,0.00019452,3]
[347725247,1736082642346,-500.0,0.00019452,3]
[347725248,1736082642355,-500.0,0.00019452,3]
[347725249,1736082642364,-500.0,0.00019452,3]
[347725250,1736082642374,-954.46,0.00019452,3]
[347725251,1736082642384,-500.0,0.00019452,3]
[347725252,1736082642394,-730.44,0.00019452,3]
[347725253,1736082642406,-500.0,0.00019452,3]
[347725254,1736082642416,-500.0,0.00019452,3]
[347725255,1736082642426,-2075.22,0.00019452,3]
[347725256,1736082642435,-4847.05030696,0.00019452,3]
[347725257,1736082642451,-4888.97969304,0.00019452,3]
[347725258,1736082642461,-500.0,0.00019452,3]
[347725259,1736082642470,-500.0,0.00019452,3]
[347725260,1736082642480,-500.0,0.00019452,3]
[347725261,1736082642489,-523.15,0.00019452,3]
[347725262,1736082642498,-1122.52680033,0.00019452,3]
[347725263,1736082642510,-293.47199999,0.00019452,3]
[347725264,1736082642522,-927.35119968,0.00019452,3]
[347725265,1736082642531,-222.79880032,0.00019452,3]
[347725266,1736082642543,-277.20119968,0.00019452,3]
[347725267,1736082642552,-225.84880032,0.00019452,3]
[347725268,1736082642563,-916.47119968,0.00019452,3]
[347725269,1736082642573,-500.0,0.00019452,3]
[347725270,1736082642582,-291.16038289,0.00019452,3]
[347725291,1736082643160,-500.0,0.00019178,2]
[347725294,1736082643170,-208.83961711,0.00019452,3]
[347725296,1736082643180,-1119.04,0.00019452,3]
[347725298,1736082643189,-500.0,0.00019452,3]
[347725299,1736082643198,-500.0,0.00019452,3]
[347725302,1736082643209,-500.0,0.00019452,3]
[347725304,1736082643219,-761.4,0.00019452,3]
[347725306,1736082643228,-500.0,0.00019452,3]
[347725308,1736082643237,-291.79818127,0.00019452,3]
[347725310,1736082643247,-500.0,0.00019452,3]
[347725312,1736082643256,-500.0,0.00019452,3]
[347725314,1736082643265,-500.0,0.00019452,3]
[347725316,1736082643274,-500.0,0.00019452,3]
[347725319,1736082643283,-829.06,0.00019452,3]
[347725322,1736082643293,-500.0,0.00019452,3]
[347725325,1736082643302,-500.0,0.00019452,3]
[347725328,1736082643312,-500.0,0.00019452,3]
[347725330,1736082643321,-500.0,0.00019452,3]
[347725332,1736082643334,-789.32,0.00019452,3]
[347725333,1736082643344,-500.0,0.00019452,3]
[347725335,1736082643354,-1561.65,0.00019452,3]
[347725337,1736082643363,-1561.65,0.00019452,3]
[347725339,1736082643374,-500.0,0.00019452,3]
[347725342,1736082643384,-500.0,0.00019452,3]
[347725344,1736082643393,-500.0,0.00019452,3]
[347725345,1736082643404,-500.0,0.00019724,3]
[347725347,1736082643413,-500.0,0.00019725,3]
[347725349,1736082643422,-170.40685736,0.00019725,2]
[347725351,1736082643432,-500.0,0.00019726,3]
[347725354,1736082643441,-500.0,0.00019726,3]
[347725369,1736082643560,-500.0,0.00019726,3]
[347725371,1736082643570,-500.0,0.00019726,3]
[347725373,1736082643579,-500.0,0.00019726,3]
[347725375,1736082643589,-954.46,0.00019726,3]
[347725377,1736082643598,-500.0,0.00019726,3]
[347725379,1736082643608,-730.44,0.00019726,3]
[347725381,1736082643617,-500.0,0.00019726,3]
[347725383,1736082643627,-500.0,0.00019726,3]
[347725385,1736082643636,-2075.22,0.00019726,3]
[347725387,1736082643646,-9736.03,0.00019726,3]
[347725389,1736082643655,-500.0,0.00019726,3]
[347725391,1736082643665,-500.0,0.00019726,3]
[347725393,1736082643674,-500.0,0.00019726,3]
[347725395,1736082643683,-523.15,0.00019726,3]
[347725397,1736082643693,-2343.35,0.00019726,3]
[347725399,1736082643702,-500.0,0.00019726,3]
[347725401,1736082643711,-1142.32,0.00019726,3]
[347725403,1736082643720,-500.0,0.00019726,3]
[347725405,1736082643730,-500.0,0.00019726,3]
[347725407,1736082643739,-1119.04,0.00019726,3]
[347725409,1736082643748,-500.0,0.00019726,3]
[347725411,1736082643758,-500.0,0.00019726,3]
[347725413,1736082643767,-500.0,0.00019726,3]
[347725415,1736082643776,-761.4,0.00019726,3]
[347725417,1736082643786,-500.0,0.00019726,3]
[347725419,1736082643795,-500.0,0.00019726,3]
[347725421,1736082643804,-500.0,0.00019726,3]
[347725423,1736082643814,-500.0,0.00019726,3]
[347725425,1736082643823,-268.79217471,0.00019726,3]
[347725427,1736082643832,-829.06,0.00019726,3]
[347725429,1736082643843,-500.0,0.00019726,3]
[347725431,1736082643852,-500.0,0.00019726,3]
[347725433,1736082643862,-500.0,0.00019726,3]
[347725435,1736082643871,-500.0,0.00019726,3]
[347725437,1736082643881,-789.32,0.00019726,3]
[347725439,1736082643890,-500.0,0.00019726,3]
[347725441,1736082643899,-1561.65,0.00019726,3]
[347725443,1736082643908,-500.0,0.00019726,3]
[347725445,1736082643918,-1561.65,0.00019726,3]
[347725447,1736082643927,-500.0,0.00019726,3]
[347725449,1736082643937,-500.0,0.00019726,3]
[347725451,1736082643946,-167.63832417,0.000199,2]
[347725453,1736082643955,-150.633,0.00019979,2]
[347725455,1736082643964,-216.713,0.00019979,2]
[347725457,1736082643974,-150.0,0.00019979,2]
[347725459,1736082643983,-2088.0,0.00019979,2]
[347725461,1736082643992,-1657.05,0.00019979,2]
[347725463,1736082644001,-615.63937716,0.00019999,3]
[347725465,1736082644010,-8696.0,0.0002,2]
[347725467,1736082644019,-500.0,0.0002,3]
[347725469,1736082644028,-500.0,0.0002,3]
[347725471,1736082644038,-500.0,0.0002,3]
[347725473,1736082644048,-500.0,0.0002,3]
[347725475,1736082644057,-500.0,0.0002,3]
[347725477,1736082644066,-954.46,0.0002,3]
[347725479,1736082644075,-500.0,0.0002,3]
[347725481,1736082644085,-730.44,0.0002,3]
[347725483,1736082644095,-378.99554935,0.0002,3]
[347725485,1736082644104,-500.0,0.0002,3]
[347725487,1736082644113,-2075.22,0.0002,3]
[347725489,1736082644123,-9736.03,0.0002,3]
[347725491,1736082644135,-500.0,0.0002,3]
[347725493,1736082644145,-500.0,0.0002,3]
[347725495,1736082644156,-500.0,0.0002,3]
[347725497,1736082644166,-523.15,0.0002,3]
[347725499,1736082644175,-2343.35,0.0002,3]
[347725501,1736082644185,-500.0,0.0002,3]
[347725503,1736082644195,-1142.32,0.0002,3]
[347725505,1736082644204,-500.0,0.0002,3]
[347725507,1736082644214,-500.0,0.0002,3]
[347725509,1736082644223,-1119.04,0.0002,3]
[347725511,1736082644232,-500.0,0.0002,3]
[347725513,1736082644241,-439.21499577,0.0002,3]
[347725515,1736082644250,-500.0,0.0002,3]
[347725517,1736082644260,-761.4,0.0002,3]
[347725519,1736082644270,-500.0,0.0002,3]
[347725521,1736082644279,-500.0,0.0002,3]
[347725523,1736082644288,-500.0,0.0002,3]
[347725525,1736082644298,-500.0,0.0002,3]
[347725527,1736082644308,-829.06,0.0002,3]
[347725529,1736082644317,-500.0,0.0002,3]
[347725531,1736082644330,-500.0,0.0002,3]
[347725533,1736082644340,-500.0,0.0002,3]
[347725535,1736082644349,-500.0,0.0002,3]
[347725537,1736082644358,-789.32,0.0002,3]
[347725539,1736082644368,-500.0,0.0002,3]
[347725541,1736082644377,-500.0,0.0002,3]
[347725543,1736082644386,-1561.65,0.0002,3]
[347725545,1736082644395,-1561.65,0.0002,3]
[347725547,1736082644405,-500.0,0.0002,3]
[347725549,1736082644415,-500.0,0.0002,3]
[347725551,1736082644425,-1200.0,0.00020031,2]
[347725553,1736082644435,-500.0,0.00020273,3]
[347725555,1736082644445,-500.0,0.00020273,3]
[347725557,1736082644455,-500.0,0.00020273,3]
[347725559,1736082644464,-500.0,0.00020273,3]
[347725561,1736082644473,-500.0,0.00020273,3]
[347725563,1736082644483,-954.46,0.00020273,3]
[347725565,1736082644493,-500.0,0.00020273,3]
[347725567,1736082644504,-730.44,0.00020273,3]
[347725569,1736082644512,-500.0,0.00020273,3]
[347725571,1736082644522,-2075.22,0.00020273,3]
[347725573,1736082644531,-9736.03,0.00020273,3]
[347725575,1736082644540,-500.0,0.00020273,3]
[347725577,1736082644549,-585.27947464,0.00020273,3]
[347725579,1736082644559,-500.0,0.00020273,3]
[347725581,1736082644568,-523.15,0.00020273,3]
[347725583,1736082644578,-2343.35,0.00020273,3]
[347725585,1736082644587,-500.0,0.00020273,3]
[347725587,1736082644597,-1142.32,0.00020273,3]
[347725589,1736082644606,-500.0,0.00020273,3]
[347725591,1736082644616,-500.0,0.00020273,3]
[347725593,1736082644625,-1119.04,0.00020273,3]
[347725595,1736082644635,-500.0,0.00020273,3]
[347725597,1736082644644,-500.0,0.00020273,3]
[347725599,1736082644654,-761.4,0.00020273,3]
[347725601,1736082644663,-500.0,0.00020273,3]
[347725603,1736082644671,-500.0,0.00020273,3]
[347725604,1736082644680,-500.0,0.00020273,3]
[347725606,1736082644690,-500.0,0.00020273,3]
[347725608,1736082644699,-829.06,0.00020273,3]
[347725610,1736082644709,-500.0,0.00020273,3]
[347725612,1736082644718,-500.0,0.00020273,3]
[347725614,1736082644728,-500.0,0.00020273,3]
[347725616,1736082644738,-500.0,0.00020273,3]
[347725618,1736082644747,-789.32,0.00020273,3]
[347725620,1736082644757,-500.0,0.00020273,3]
[347725622,1736082644767,-500.0,0.00020273,3]
[347725624,1736082644776,-1561.65,0.00020273,3]
[347725626,1736082644786,-1561.65,0.00020273,3]
[347725629,1736082644796,-500.0,0.00020273,3]
[347725631,1736082644806,-500.0,0.00020273,3]
[347725633,1736082644815,-291.654192,0.00020447,2]
[347725634,1736082644825,-167.63832415,0.000205,2]
[347725636,1736082644835,-500.0,0.00020547,3]
[347725638,1736082644845,-500.0,0.00020547,3]
[347725640,1736082644854,-500.0,0.00020547,3]
[347725642,1736082644864,-500.0,0.00020547,3]
[347725644,1736082644873,-500.0,0.00020547,3]
[347725646,1736082644883,-954.46,0.00020547,3]
[347725648,1736082644892,-500.0,0.00020547,3]
[347725650,1736082644902,-730.44,0.00020547,3]
[347725652,1736082644911,-500.0,0.00020547,3]
[347725654,1736082644921,-2075.22,0.00020547,3]
[347725656,1736082644931,-9736.03,0.00020547,3]
[347725658,1736082644940,-500.0,0.00020547,3]
[347725660,1736082644949,-500.0,0.00020547,3]
[347725662,1736082644958,-523.15,0.00020547,3]
[347725664,1736082644968,-2343.35,0.00020547,3]
[347725666,1736082644977,-500.0,0.00020547,3]
[347725668,1736082644986,-1142.32,0.00020547,3]
[347725670,1736082644996,-500.0,0.00020547,3]
[347725672,1736082645006,-500.0,0.00020547,3]
[347725674,1736082645016,-1119.04,0.00020547,3]
[347725676,1736082645025,-500.0,0.00020547,3]
[347725678,1736082645035,-500.0,0.00020547,3]
[347725680,1736082645044,-761.4,0.00020547,3]
[347725682,1736082645054,-500.0,0.00020547,3]
[347725684,1736082645063,-500.0,0.00020547,3]
[347725686,1736082645072,-500.0,0.00020547,3]
[347725688,1736082645082,-500.0,0.00020547,3]
[347725690,1736082645092,-829.06,0.00020547,3]
[347725692,1736082645102,-500.0,0.00020547,3]
[347725694,1736082645111,-500.0,0.00020547,3]
[347725696,1736082645121,-500.0,0.00020547,3]
[347725698,1736082645130,-500.0,0.00020547,3]
[347725700,1736082645139,-789.32,0.00020547,3]
[347725702,1736082645150,-500.0,0.00020547,3]
[347725704,1736082645161,-216.93408629,0.00020547,3]
[347725706,1736082645169,-1561.65,0.00020547,3]
[347725708,1736082645179,-1561.65,0.00020547,3]
[347725710,1736082645188,-500.0,0.00020547,3]
[347725712,1736082645197,-367.57438472,0.00020547,3]
[347725714,1736082645207,-300.0,0.000208,9]
[347725716,1736082645216,-500.0,0.00020821,3]
[347725718,1736082645227,-500.0,0.00020821,3]
[347725720,1736082645236,-500.0,0.00020821,3]
[347725722,1736082645246,-500.0,0.00020821,3]
[347725724,1736082645255,-381.63892191,0.00020821,3]
[347725726,1736082645264,-954.46,0.00020821,3]
[347725728,1736082645274,-500.0,0.00020821,3]
[347725730,1736082645283,-730.44,0.00020821,3]
[347725732,1736082645293,-500.0,0.00020821,3]
[347725734,1736082645301,-2075.22,0.00020821,3]
[347725736,1736082645311,-9736.03,0.00020821,3]
[347725738,1736082645320,-500.0,0.00020821,3]
[347725740,1736082645333,-500.0,0.00020821,3]
[347725742,1736082645344,-523.15,0.00020821,3]
[347725744,1736082645353,-2343.35,0.00020821,3]
[347725746,1736082645364,-354.62929464,0.00020821,3]
[347725747,1736082645374,-1142.32,0.00020821,3]
[347725748,1736082645383,-500.0,0.00020821,3]
[347725749,1736082645397,-500.0,0.00020821,3]
[347725750,1736082645406,-1119.04,0.00020821,3]
[347725751,1736082645416,-500.0,0.00020821,3]
[347725752,1736082645426,-500.0,0.00020821,3]
[347725753,1736082645435,-761.4,0.00020821,3]
[347725755,1736082645444,-500.0,0.00020821,3]
[347725757,1736082645453,-500.0,0.00020821,3]
[347725759,1736082645463,-500.0,0.00020821,3]
[347725761,1736082645472,-500.0,0.00020821,3]
[347725763,1736082645482,-829.06,0.00020821,3]
[347725765,1736082645491,-500.0,0.00020821,3]
[347725767,1736082645501,-500.0,0.00020821,3]
[347725770,1736082645513,-500.0,0.00020821,3]
[347725772,1736082645522,-500.0,0.00020821,3]
[347725774,1736082645531,-789.32,0.00020821,3]
[347725776,1736082645540,-500.0,0.00020821,3]
[347725778,1736082645550,-1561.65,0.00020821,3]
[347725780,1736082645559,-1561.65,0.00020821,3]
[347725782,1736082645568,-500.0,0.00020821,3]
[347725784,1736082645577,-420.0,0.00020899,2]
[347725786,1736082645586,-500.0,0.00021095,3]
[347725788,1736082645597,-500.0,0.00021095,3]
[347725790,1736082645606,-500.0,0.00021095,3]
[347725793,1736082645616,-500.0,0.00021095,3]
[347725796,1736082645626,-954.46,0.00021095,3]
[347725799,1736082645635,-568.38279881,0.00021095,3]
[347725802,1736082645645,-730.44,0.00021095,3]
[347725805,1736082645654,-500.0,0.00021095,3]
[347725808,1736082645663,-2075.22,0.00021095,3]
[347725811,1736082645672,-9736.03,0.00021095,3]
[347725814,1736082645682,-500.0,0.00021095,3]
[347725816,1736082645691,-500.0,0.00021095,3]
[347725818,1736082645701,-523.15,0.00021095,3]
[347725820,1736082645710,-2343.35,0.00021095,3]
[347725823,1736082645720,-1142.32,0.00021095,3]
[347725825,1736082645730,-500.0,0.00021095,3]
[347725827,1736082645740,-500.0,0.00021095,3]
[347725829,1736082645749,-1119.04,0.00021095,3]
[347725831,1736082645759,-500.0,0.00021095,3]
[347725833,1736082645768,-500.0,0.00021095,3]
[347725835,1736082645778,-761.4,0.00021095,3]
[347725837,1736082645787,-500.0,0.00021095,3]
[347725839,1736082645796,-500.0,0.00021095,3]
[347725841,1736082645806,-500.0,0.00021095,3]
[347725843,1736082645815,-500.0,0.00021095,3]
[347725845,1736082645825,-829.06,0.00021095,3]
[347725847,1736082645834,-217.94904278,0.00021095,3]
[347725849,1736082645843,-500.0,0.00021095,3]
[347725851,1736082645852,-500.0,0.00021095,3]
[347725853,1736082645863,-500.0,0.00021095,3]
[347725855,1736082645872,-789.32,0.00021095,3]
[347725857,1736082645882,-500.0,0.00021095,3]
[347725861,1736082645892,-1561.65,0.00021095,3]
[347725863,1736082645926,-1561.65,0.00021095,3]
[347725865,1736082645936,-500.0,0.00021095,3]
[347725867,1736082645945,-167.63832415,0.000211,2]
[347725870,1736082645955,-500.0,0.00021369,3]
[347725871,1736082645965,-500.0,0.00021369,3]
[347725874,1736082645975,-500.0,0.00021369,3]
[347725875,1736082645985,-500.0,0.00021369,3]
[347725877,1736082645994,-954.46,0.00021369,3]
[347725880,1736082646004,-730.44,0.00021369,3]
[347725881,1736082646013,-500.0,0.00021369,3]
[347725883,1736082646024,-2075.22,0.00021369,3]
[347725885,1736082646033,-9736.03,0.00021369,3]
[347725887,1736082646043,-500.0,0.00021369,3]
[347725889,1736082646053,-500.0,0.00021369,3]
[347725892,1736082646063,-523.15,0.00021369,3]
[347725893,1736082646073,-2343.35,0.00021369,3]
[347725896,1736082646083,-1142.32,0.00021369,3]
[347725898,1736082646092,-500.0,0.00021369,3]
[347725900,1736082646102,-500.0,0.00021369,3]
[347725902,1736082646111,-1119.04,0.00021369,3]
[347725904,1736082646121,-500.0,0.00021369,3]
[347725906,1736082646132,-500.0,0.00021369,3]
[347725907,1736082646141,-761.4,0.00021369,3]
[347725910,1736082646151,-500.0,0.00021369,3]
[347725912,1736082646160,-500.0,0.00021369,3]
[347725913,1736082646169,-500.0,0.00021369,3]
[347725915,1736082646179,-500.0,0.00021369,3]
[347725917,1736082646188,-829.06,0.00021369,3]
[347725919,1736082646197,-500.0,0.00021369,3]
[347725921,1736082646207,-500.0,0.00021369,3]
[347725923,1736082646216,-500.0,0.00021369,3]
[347725926,1736082646225,-789.32,0.00021369,3]
[347725927,1736082646235,-500.0,0.00021369,3]
[347725929,1736082646244,-1561.65,0.00021369,3]
[347725932,1736082646254,-1561.65,0.00021369,3]
[347725934,1736082646263,-500.0,0.00021369,3]
[347725936,1736082646273,-468.825,0.000216,2]
[347725938,1736082646282,-8696.0,0.000216,4]
[347725940,1736082646291,-500.0,0.00021643,3]
[347725941,1736082646300,-500.0,0.00021643,3]
[347725943,1736082646310,-351.80720067,0.00021643,3]
[347725945,1736082646319,-500.0,0.00021643,3]
[347725948,1736082646332,-954.46,0.00021643,3]
[347725949,1736082646341,-730.44,0.00021643,3]
[347725952,1736082646350,-500.0,0.00021643,3]
[347725954,1736082646358,-2075.22,0.00021643,3]
[347725956,1736082646369,-9736.03,0.00021643,3]
[347725958,1736082646379,-500.0,0.00021643,3]
[347725960,1736082646388,-500.0,0.00021643,3]
[347725962,1736082646398,-523.15,0.00021643,3]
[347725964,1736082646407,-2343.35,0.00021643,3]
[347725966,1736082646418,-1142.32,0.00021643,3]
[347725968,1736082646427,-500.0,0.00021643,3]
[347725970,1736082646436,-500.0,0.00021643,3]
[347725972,1736082646446,-1119.04,0.00021643,3]
[347725974,1736082646455,-500.0,0.00021643,3]
[347725976,1736082646464,-500.0,0.00021643,3]
[347725978,1736082646473,-761.4,0.00021643,3]
[347725980,1736082646482,-500.0,0.00021643,3]
[347725982,1736082646492,-500.0,0.00021643,3]
[347725984,1736082646501,-500.0,0.00021643,3]
[347725986,1736082646510,-500.0,0.00021643,3]
[347725988,1736082646519,-829.06,0.00021643,3]
[347725990,1736082646529,-500.0,0.00021643,3]
[347725992,1736082646538,-500.0,0.00021643,3]
[347725994,1736082646547,-500.0,0.00021643,3]
[347725996,1736082646556,-789.32,0.00021643,3]
[347725998,1736082646565,-500.0,0.00021643,3]
[347726000,1736082646575,-1561.65,0.00021643,3]
[347726002,1736082646584,-1561.65,0.00021643,3]
[347726004,1736082646595,-500.0,0.00021643,3]
[347726006,1736082646604,-167.63832415,0.000217,2]
[347726008,1736082646614,-1071.91045685,0.00021839,2]
[347726010,1736082646623,-229.61,0.000219,31]
[347726012,1736082646633,-229.61,0.000219,31]
[347726014,1736082646642,-229.61,0.000219,31]
[347726016,1736082646651,-229.61,0.000219,31]
[347726018,1736082646660,-229.61,0.000219,31]
[347726020,1736082646669,-229.61,0.000219,31]
[347726022,1736082646679,-229.61,0.000219,31]
[347726024,1736082646688,-229.61,0.000219,31]
[347726026,1736082646697,-229.61,0.000219,31]
[347726028,1736082646707,-229.61,0.000219,31]
[347726030,1736082646715,-229.61,0.000219,31]
[347726032,1736082646724,-229.61,0.000219,31]
[347726034,1736082646734,-229.61,0.000219,31]
[347726036,1736082646743,-229.61,0.000219,31]
[347726038,1736082646752,-229.61,0.000219,31]
[347726040,1736082646761,-229.61,0.000219,31]
[347726042,1736082646770,-500.0,0.00021917,3]